fUSD/lending_fUSD_20251003
["ID","MTS","AMOUNT","RATE_DAILY","PERIOD"]
[388916351,1759493466838,-500.0,0.00021917,2]
[388916352,1759493466847,-500.0,0.00021917,2]
[388916353,1759493466857,-666.9,0.00021917,2]
[388916354,1759493466867,-500.0,0.00021917,2]
[388916355,1759493466876,-500.0,0.00021917,2]
[388916356,1759493466885,-666.9,0.00021917,2]
[388916357,1759493466894,-500.0,0.00021917,2]
[388916358,1759493466903,-149.69447325,0.00021917,2]
[388916359,1759493466954,-350.30552675,0.00021917,2]
[388916360,1759493466964,-666.9,0.00021917,2]
[388916361,1759493466973,-99.57525319,0.00021917,2]
[388916362,1759493466987,-400.42474681,0.00021917,2]
[388916363,1759493466997,-151.0,0.00021917,2]
[388916364,1759493467008,-500.0,0.00021917,2]
[388916365,1759493467017,-666.9,0.00021917,2]
[388916366,1759493467027,-500.0,0.00021917,2]
[388916367,1759493467036,-151.0,0.00021917,2]
[388916368,1759493467046,-500.0,0.00021917,2]
[388916369,1759493467056,-666.9,0.00021917,2]
[388916370,1759493467066,-500.0,0.00021917,2]
[388916371,1759493467079,-500.0,0.00021917,2]
[388916372,1759493467089,-666.9,0.00021917,2]
[388916373,1759493467099,-903.51,0.00021917,2]
[388916374,1759493467110,-265.30987221,0.00021917,2]
[388916375,1759493467153,-234.69012779,0.00021917,2]
[388916376,1759493467163,-666.9,0.00021917,2]
[388916377,1759493467174,-903.51,0.00021917,2]
[388916378,1759493467184,-517.71394478,0.00021917,2]
[388916379,1759493467194,-903.51,0.00021917,2]
[388916380,1759493467203,-666.9,0.00021917,2]
[388916381,1759493467213,-903.51,0.00021917,2]
[388916382,1759493467222,-666.9,0.00021917,2]
[388916383,1759493467232,-903.51,0.00021917,2]
[388916384,1759493467241,-666.9,0.00021917,2]
[388916385,1759493467251,-903.51,0.00021917,2]
[388916386,1759493467260,-666.9801968,0.00021917,2]
[388916387,1759493467269,-903.51,0.00021917,2]
[388916388,1759493467279,-903.51,0.00021917,2]
[388916389,1759493467289,-903.51,0.00021917,2]
[388916390,1759493467298,-1448.66,0.00021917,2]
[388916391,1759493467308,-903.51,0.00021917,2]
[388916392,1759493467317,-151.0,0.00021917,2]
[388916393,1759493467326,-903.51,0.00021917,2]
[388916394,1759493467335,-1448.66,0.00021917,2]
[388916395,1759493467346,-151.0,0.00021917,2]
[388916396,1759493467356,-151.0,0.00021917,2]
[388916397,1759493467365,-1448.66,0.00021917,2]
[388916398,1759493467375,-903.51,0.00021917,2]
[388916399,1759493467384,-151.0,0.00021917,2]
[388916400,1759493467393,-1448.66,0.00021917,2]
[388916401,1759493467402,-1534.64,0.00021917,2]
[388916402,1759493467411,-903.51,0.00021917,2]
[388916403,1759493467420,-1448.66,0.00021917,2]
[388916404,1759493467430,-1534.64,0.00021917,2]
[388916405,1759493467439,-469.01537485,0.00021917,2]
[388916406,1759493467503,-434.49462515,0.00021917,2]
[388916407,1759493467513,-151.0,0.00021917,2]
[388916408,1759493467523,-1448.66,0.00021917,2]
[388916409,1759493467533,-1534.64,0.00021917,2]
[388916410,1759493467543,-903.51,0.00021917,2]
[388916411,1759493467552,-151.0,0.00021917,2]
[388916412,1759493467561,-1448.66,0.00021917,2]
[388916413,1759493467571,-1534.64,0.00021917,2]
[388916414,1759493467580,-903.51,0.00021917,2]
[388916415,1759493467589,-166.862691,0.00021917,2]
[388916416,1759493467598,-1448.66,0.00021917,2]
[388916417,1759493467607,-500.0,0.00021917,2]
[388916418,1759493467616,-1039.52339537,0.00021917,2]
[388916419,1759493467662,-300.355,0.00021917,2]
[388916420,1759493467672,-194.76160463,0.00021917,2]
[388916421,1759493467682,-895.25954022,0.00021917,2]
[388916422,1759493467694,-8.25045978,0.00021917,2]
[388916423,1759493467703,-748.20689784,0.00021917,2]
[388916424,1759493467715,-700.45310216,0.00021917,2]
[388916425,1759493467725,-500.0,0.00021917,2]
[388916426,1759493467734,-1534.64,0.00021917,2]
[388916427,1759493467744,-903.51,0.00021917,2]
[388916428,1759493467753,-1448.66,0.00021917,2]
[388916429,1759493467762,-500.0,0.00021917,2]
[388916430,1759493467771,-1534.64,0.00021917,2]
[388916431,1759493467780,-903.51,0.00021917,2]
[388916432,1759493467790,-1448.66,0.00021917,2]
[388916433,1759493467799,-500.0,0.00021917,2]
[388916434,1759493467809,-1534.64,0.00021917,2]
[388916435,1759493467819,-903.51,0.00021917,2]
[388916436,1759493467828,-500.0,0.00021917,2]
[388916437,1759493467838,-686.23721968,0.00021917,2]
[388916438,1759493490530,189.02482643,0.00013615,2]
[388916439,1759493679575,-153.58,0.00017,2]
[388916440,1759493679625,-313.84,0.00017,2]
[388916441,1759493696598,-304.77,0.00017,2]
[388916442,1759493714693,-302.37,0.00017,2]
[388916443,1759493915298,-79.02,0.00017,2]
[388916444,1759493915340,-931.96,0.000172,2]
[388916445,1759493922926,-302.65,0.000172,2]
[388916446,1759493930396,-305.76,0.000172,2]
[388916447,1759493938434,-302.79,0.000172,2]
[388916448,1759494008029,-148.88,0.000172,2]
[388916449,1759494008129,-7.96,0.000172,2]
[388916450,1759494014943,-185.14,0.000172,2]
[388916453,1759494248821,2213.0,0.00030137,120]
[388916454,1759494327519,-10920.65279319,0.00017,2]
[388916455,1759494335281,-26616.72145396,0.00017,2]
[388916456,1759494342507,-1263.0,0.00017,2]
[388916457,1759494349466,-305.18,0.00017,2]
[388916458,1759494356579,-185.41,0.00017,2]
[388916459,1759494363904,-187.07,0.00016915,2]
[388916460,1759494370964,-300.43,0.00016915,2]
[388916461,1759494378659,-188.21,0.00016915,2]
[388916462,1759494386132,-191.43,0.00016915,2]
[388916463,1759494454363,195.0,0.00016,2]
[388916468,1759494584978,-1000.0,0.00021945,30]
[388916508,1759494632270,-834.46466102,0.00016813,2]
[388916510,1759494632282,-234.20339198,0.00016813,2]
[388916511,1759494632293,-183.66843204,0.00016898,2]
[388916512,1759494632303,-183.45952393,0.000169,2]
[388916514,1759494632313,-183.66843204,0.000169,2]
[388916516,1759494632323,-839.33674156,0.000169,2]
[388916518,1759494632333,-436.57020694,0.00016957,2]
[388916519,1759494632347,-844.35788172,0.00016957,2]
[388916520,1759494632369,-719.07191134,0.00016957,2]
[388916521,1759494632379,-500.0,0.00016973,2]
[388916522,1759494632388,-500.0,0.00016973,2]
[388916523,1759494632398,-500.0,0.00016973,2]
[388916524,1759494632408,-500.0,0.00016973,2]
[388916525,1759494632421,-500.0,0.00016973,2]
[388916526,1759494632432,-500.0,0.00016973,2]
[388916527,1759494632443,-502.11507286,0.00016973,2]
[388916528,1759494632453,-243.74479746,0.00016973,2]
[388916529,1759494632467,-256.25520254,0.00016973,2]
[388916530,1759494632477,-188.26,0.0001699,2]
[388916531,1759494632487,-648.35,0.0001699,2]
[388916532,1759494632497,-648.35,0.0001699,2]
[388916533,1759494632506,-1200.0,0.00016997,2]
[388916534,1759494632516,-300.0,0.00016998,2]
[388916535,1759494632526,-300.0,0.00016998,2]
[388916546,1759494632859,-300.0,0.00016998,2]
[388916547,1759494632941,-550.0,0.00016999,2]
[388916548,1759494632951,-500.0,0.00016999,2]
[388916549,1759494632961,-500.0,0.00016999,2]
[388916550,1759494632971,-500.0,0.00016999,2]
[388916551,1759494632981,-500.0,0.00016999,2]
[388916552,1759494632991,-326.65312212,0.00016999,2]
[388916553,1759494633001,-75904.33426893,0.00017,2]
[388916554,1759494633013,-630.31,0.00017,2]
[388916555,1759494633038,-764.46,0.00017,2]
[388916556,1759494633050,-600.0,0.00017,2]
[388916557,1759494633062,-1993.01259105,0.00017,2]
[388916558,1759494633116,-2385.6564233,0.00017,2]
[388916559,1759494633128,-4894.03749971,0.00017,2]
[388916560,1759494633241,-666.0,0.00017,2]
[388916561,1759494633254,-1023.52500493,0.00017,2]
[388916562,1759494633265,-1359.81270306,0.00017,2]
[388916563,1759494633277,-728.12295122,0.00017,2]
[388916564,1759494633309,-9464.22229704,0.00017,2]
[388916565,1759494633320,-39749.88503786,0.00017,2]
[388916566,1759494633331,-36729.81574817,0.00017,2]
[388916567,1759494638133,-23239.09906974,0.00017,2]
[388916568,1759494638168,-1469.81219676,0.00017,2]
[388916569,1759494638179,-290.29697381,0.00017,2]
[388916570,1759494638191,-1558.83000507,0.00017,2]
[388916571,1759494638203,-1180.0948735,0.00017,2]
[388916572,1759494638214,-9244.54281626,0.00017,2]
[388916573,1759494638286,-622.44633818,0.00017,2]
[388916574,1759494638299,-965.16039131,0.00017,2]
[388916575,1759494638329,-499.86178415,0.00017,2]
[388916576,1759494638341,-1893.07921605,0.00017,2]
[388916577,1759494638354,-721.25990512,0.00017,2]
[388916578,1759494638380,-12274.44222514,0.00017,2]
[388916579,1759494638394,-187589.78465261,0.00017,2]
[388916581,1759494638404,-228892.96841432,0.00017,2]
[388916643,1759494640753,-206.26,0.0001699,2]
[388916645,1759494640763,-206.26,0.0001699,2]
[388916647,1759494640772,-1547.9975003,0.00017,2]
[388916651,1759494640805,-798.13368898,0.00017,2]
[388916653,1759494640816,-758.53071885,0.00017,2]
[388916696,1759494643227,-896.01859999,0.00017,2]
[388916697,1759494643394,-171450.36333324,0.00017,2]
[388916698,1759494643404,-152.80333199,0.000172,2]
[388916699,1759494643414,-151.87511838,0.000173,2]
[388916700,1759494643424,-208.51655962,0.00017399,2]
[388916701,1759494643434,-227.034464,0.00017399,2]
[388916702,1759494643445,-500.0,0.00017399,2]
[388916703,1759494643456,-384.15241227,0.00017399,2]
[388916704,1759494643466,-167.89706856,0.000174,2]
[388916705,1759494643475,-29999.99,0.000174,2]
[388916706,1759494643486,-1000.0,0.00017521,2]
[388916707,1759494643496,-1000.0,0.00017521,2]
[388916708,1759494643505,-1000.0,0.00017521,2]
[388916709,1759494643515,-1000.0,0.00017521,2]
[388916710,1759494643525,-152.80333193,0.0001786,2]
[388916711,1759494643535,-151.87511838,0.00017945,2]
[388916712,1759494643545,-18303.40973717,0.00017945,2]
[388916731,1759494643903,-4561.8500242,0.00017945,2]
[388916733,1759494643915,-3751.46023863,0.00017945,2]
[388916735,1759494643925,-12700.00160768,0.00018,2]
[388916738,1759494643935,-517.15,0.00018056,2]
[388916740,1759494643944,-502.471142,0.00018068,2]
[388916743,1759494643954,-1500.0,0.00018068,2]
[388916746,1759494643964,-1500.0,0.00018068,2]
[388916749,1759494643973,-437.64,0.00018096,2]
[388916752,1759494643983,-442.16,0.00018096,2]
[388916754,1759494643993,-300.16,0.00018271,2]
[388916756,1759494644003,-152.80333193,0.00018519,2]
[388916758,1759494644013,-420.0,0.00018566,2]
[388916760,1759494644023,-2601.38574282,0.00018588,2]
[388916762,1759494644032,-151.87511838,0.00018591,2]
[388916764,1759494644042,-231.71,0.00018597,2]
[388916766,1759494644051,-2000.0,0.00018606,2]
[388916768,1759494644061,-2000.0,0.00018616,2]
[388916770,1759494644071,-2000.0,0.00018616,2]
[388916772,1759494644081,-3557.765843,0.00018817,2]
[388916774,1759494644090,-1263.0,0.00019046,2]
[388916776,1759494644102,-3646.453,0.00019046,2]
[388916778,1759494644111,-621.0,0.00019046,2]
[388916780,1759494644121,-200.0,0.00019143,2]
[388916782,1759494644130,-1083.83614329,0.00019164,2]
[388916784,1759494644140,-2500.0,0.00019164,2]
[388916785,1759494644149,-152.80333193,0.00019179,2]
[388916788,1759494644158,-151.87511838,0.00019236,2]
[388916789,1759494644168,-11673.32,0.0001944,2]
[388916792,1759494644177,-165.16,0.00019472,2]
[388916794,1759494644187,-370.55283938,0.00019546,2]
[388916796,1759494644196,-301.87,0.00019601,2]
[388916798,1759494644205,-305.72,0.00019679,2]
[388916799,1759494644215,-152.80333193,0.00019838,2]
[388916801,1759494644225,-151.0,0.00019857,2]
[388916803,1759494644234,-151.0,0.00019857,2]
[388916805,1759494644244,-151.0,0.00019857,2]
[388916807,1759494644255,-151.0,0.00019857,2]
[388916809,1759494644265,-151.0,0.00019857,2]
[388916811,1759494644276,-151.0,0.00019857,2]
[388916813,1759494644285,-151.0,0.00019857,2]
[388916816,1759494644295,-151.87511838,0.00019881,2]
[388916817,1759494644305,-2000.0,0.0002,2]
[388916820,1759494644314,-20000.0,0.0002,10]
[388916822,1759494644329,-666.0,0.00020025,3]
[388916823,1759494644339,-1323.41,0.00020119,2]
[388916825,1759494644351,-1323.48,0.00020141,2]
[388916826,1759494644361,-220.53,0.00020149,2]
[388916827,1759494644371,-1124.17,0.00020274,2]
[388916828,1759494644380,-150.78,0.00020274,2]
[388916829,1759494644390,-167.84,0.00020274,2]
[388916830,1759494644401,-150.32,0.00020274,2]
[388916831,1759494644410,-300.0,0.00020274,2]
[388916832,1759494644421,-412.7,0.00020274,2]
[388916833,1759494644433,-153.34,0.00020274,2]
[388916834,1759494644443,-150.0,0.00020274,2]
[388916835,1759494644453,-412.7,0.00020274,2]
[388916836,1759494644463,-167.84,0.00020274,2]
[388916837,1759494644473,-587.0,0.00020278,2]
[388916838,1759494644484,-35825.18496425,0.000204,2]
[388916839,1759494644495,-152.80333193,0.00020498,2]
[388916840,1759494644507,-151.87511838,0.00020526,2]
[388916841,1759494644517,-1332.55,0.00020567,2]
[388916842,1759494644527,-1305.86,0.00020567,2]
[388916843,1759494644537,-1295.88,0.00020567,2]
[388916844,1759494644547,-500.0,0.00020742,2]
[388916845,1759494644557,-500.0,0.00020742,2]
[388916846,1759494644567,-500.0,0.00020742,2]
[388916847,1759494644577,-500.0,0.00020742,2]
[388916848,1759494644587,-500.0,0.00020742,2]
[388916849,1759494644596,-500.0,0.00020742,2]
[388916850,1759494644607,-500.0,0.00020742,2]
[388916851,1759494644617,-500.0,0.00020742,2]
[388916852,1759494644627,-500.0,0.00020742,2]
[388916853,1759494644637,-500.0,0.00020742,2]
[388916854,1759494644647,-500.0,0.00020742,2]
[388916855,1759494644656,-500.0,0.00020742,2]
[388916856,1759494644665,-500.0,0.00020742,2]
[388916857,1759494644675,-500.0,0.00020742,2]
[388916858,1759494644684,-500.0,0.00020742,2]
[388916859,1759494644694,-500.0,0.00020742,2]
[388916860,1759494644703,-500.0,0.00020742,2]
[388916861,1759494644713,-500.0,0.00020742,2]
[388916862,1759494644723,-500.0,0.00020742,2]
[388916863,1759494644736,-500.0,0.00020742,2]
[388916864,1759494644746,-500.0,0.00020742,2]
[388916865,1759494644756,-500.0,0.00020742,2]
[388916866,1759494644766,-500.0,0.00020742,2]
[388916867,1759494644776,-500.0,0.00020742,2]
[388916868,1759494644786,-500.0,0.00020742,2]
[388916869,1759494644795,-189.87111243,0.00020742,2]
[388916870,1759494644805,-150.0,0.00020742,2]
[388916871,1759494644815,-500.0,0.00020742,2]
[388916872,1759494644825,-150.0,0.00020742,2]
[388916873,1759494644835,-150.0,0.00020742,2]
[388916874,1759494644845,-153.19012935,0.00020742,2]
[388916875,1759494644857,-500.0,0.00020742,2]
[388916876,1759494644867,-150.0,0.00020742,2]
[388916877,1759494644878,-150.0,0.00020742,2]
[388916878,1759494644888,-500.0,0.00020742,2]
[388916879,1759494644898,-150.0,0.00020742,2]
[388916880,1759494644907,-150.0,0.00020742,2]
[388916881,1759494644917,-500.0,0.00020742,2]
[388916882,1759494644926,-150.0,0.00020742,2]
[388916883,1759494644936,-151.0284267,0.00020742,2]
[388916884,1759494644945,-205.97817009,0.00020742,2]
[388916885,1759494644954,-150.0,0.00020742,2]
[388916886,1759494644964,-150.0,0.00020742,2]
[388916887,1759494644973,-1000.0,0.00020986,2]
[388916888,1759494644983,-488.0,0.00021,2]
[388916889,1759494644993,-23783.93730773,0.00021,2]
[388916890,1759494645046,-3969.4239067,0.00021,2]
[388916891,1759494645060,-1131.2,0.00021,2]
[388916895,1759494646206,-166.64,0.00020274,2]
[388916896,1759494646216,-412.7,0.00020274,2]
[388916897,1759494646225,-2613.10714497,0.00021,2]
[388916898,1759494646239,-361.61365464,0.00021,2]
[388916899,1759494646251,-331.96507016,0.00021,2]
[388916900,1759494646277,-8512.16873809,0.00021,2]
[388916901,1759494646376,-1348.04208834,0.00021,2]
[388916902,1759494646533,-10071.12758725,0.00021,2]
[388916909,1759494647732,-466.48831908,0.00021,2]
[388916910,1759494647742,-23063.56613855,0.00021,2]
[388916911,1759494647751,-150.0,0.00021016,2]
[388916912,1759494647760,-500.0,0.00021016,2]
[388916913,1759494647770,-150.0,0.00021016,2]
[388916914,1759494647779,-150.0,0.00021016,2]
[388916915,1759494647789,-500.0,0.00021016,2]
[388916916,1759494647798,-500.0,0.00021016,2]
[388916917,1759494647810,-150.0,0.00021016,2]
[388916918,1759494647820,-150.0,0.00021016,2]
[388916919,1759494647831,-545.29,0.00021096,2]
[388916920,1759494647841,-152.80333193,0.00021157,2]
[388916921,1759494647852,-151.87511838,0.00021172,2]
[388916922,1759494647861,-500.0,0.00021178,2]
[388916923,1759494647871,-793.8448623,0.00021201,2]
[388916924,1759494647881,-200.0,0.00021252,2]
[388916925,1759494647890,-200.0,0.00021252,2]
[388916926,1759494647900,-200.0,0.00021252,2]
[388916927,1759494647910,-200.0,0.00021252,2]
[388916928,1759494647920,-200.0,0.00021252,2]
[388916929,1759494647929,-200.0,0.00021252,2]
[388916930,1759494647939,-200.0,0.00021252,2]
[388916931,1759494647948,-234.0,0.00021252,2]
[388916932,1759494647957,-200.0,0.00021252,2]
[388916933,1759494647967,-200.0,0.00021252,2]
[388916934,1759494647976,-200.0,0.00021252,2]
[388916935,1759494647986,-200.0,0.00021252,2]
[388916936,1759494647995,-150.0,0.0002129,2]
[388916937,1759494648003,-500.0,0.0002129,2]
[388916938,1759494648012,-150.0,0.0002129,2]
[388916939,1759494648021,-222.23347231,0.0002129,2]
[388916940,1759494648029,-500.0,0.0002129,2]
[388916941,1759494648038,-500.0,0.0002129,2]
[388916942,1759494648047,-250.0,0.0002129,2]
[388916943,1759494648056,-1000.0,0.00021369,2]
[388916944,1759494648065,-1425.34934577,0.000215,2]
[388916945,1759494684797,500.0,0.00027397,120]
[388916946,1759494685022,500.0,0.00027671,120]
[388916947,1759494685228,500.0,0.00027945,120]
[388916948,1759494817354,152.12,0.00010357,2]
[388916950,1759495292014,-448.92,0.00021945,30]
[388916951,1759495305503,-271.39944605,0.00023,30]
[388916952,1759495331257,2465.0,0.00030136,120]
[388916954,1759495359648,-1500.0,0.00021917,14]
[388916955,1759495359668,-475.664556,0.00021917,14]
[388916956,1759495409964,-164.30849192,0.000248,30]
[388916957,1759495409986,-507.18543834,0.00025,30]
[388916958,1759495451323,-170.59669171,0.0002294,17]
[388916959,1759495467574,-170.59669171,0.00022713,14]
[388916960,1759495478227,-1000.0,0.00021945,8]
[388916961,1759495478249,-1000.0,0.00021945,8]
[388916962,1759495478271,-1000.0,0.00021945,8]
[388916963,1759495478292,-1140.63608224,0.00021945,8]
[388916964,1759495484277,1000.0,0.00021945,8]
[388916965,1759495484853,1000.0,0.00021945,8]
[388916966,1759495485396,1000.0,0.00021945,8]
[388916967,1759495485488,1000.0,0.00021945,8]
[388916968,1759495485674,1000.0,0.00021945,8]
[388916969,1759495485981,1000.0,0.00021945,8]
[388916970,1759495486255,1000.0,0.00021945,8]
[388916971,1759495486865,1000.0,0.00021945,8]
[388916972,1759495496488,-510.09,0.00020945,7]
[388916973,1759495496510,-500.0,0.00020945,7]
[388916974,1759495496533,-608.07,0.00020945,7]
[388916975,1759495496554,-500.0,0.00020945,7]
[388916976,1759495496575,-391.93,0.00020945,7]
[388916977,1759495496595,-500.0,0.00020945,7]
[388916978,1759495509393,-500.0,0.000211,7]
[388916979,1759495509416,-1000.0,0.000212,7]
[388916980,1759495509438,-1500.0,0.000213,7]
[388916981,1759495509463,-2000.0,0.000214,7]
[388916982,1759495509489,-2500.0,0.000215,7]
[388916983,1759495509510,-500.0,0.000216,7]
[388916984,1759495509531,-500.0,0.000217,7]
[388916985,1759495509551,-500.0,0.000218,7]
[388916986,1759495509573,-500.0,0.000219,7]
[388916987,1759495509593,-686.84,0.000219,7]
[388916988,1759495531923,-170.59669171,0.00022485,11]
[388916989,1759495541035,-170.59669171,0.00022258,8]
[388916990,1759495583292,-206.7896915,0.00019078,3]
[388916991,1759495605647,-620.0,0.000205,3]
[388916992,1759495621092,618.15,0.000219,7]
[388916993,1759495630361,-25586.98952711,0.00022,7]
[388916994,1759495648191,193.74808546,0.00016006,2]
[388916997,1759495831467,-429.97,0.00018114,2]
[388916998,1759495831477,-398.40216159,0.00018114,2]
[388916999,1759495831513,-35.60783841,0.00018114,2]
[388917000,1759495831523,-304.46,0.00018114,2]
[388917001,1759495831532,-437.34,0.00018114,2]
[388917002,1759495831542,-443.47,0.00018114,2]
[388917003,1759495831551,-302.08,0.00018114,2]
[388917004,1759495831560,-301.67,0.00018114,2]
[388917005,1759495831570,-300.5,0.00018114,2]
[388917006,1759495831580,-57.25177203,0.00018205,2]
[388917007,1759495831603,-383.78822797,0.00018205,2]
[388917008,1759495831612,-161.52177203,0.00018205,2]
[388917009,1759495831624,-138.50822797,0.00018205,2]
[388917010,1759495831633,-318.27766023,0.00018205,2]
[388917011,1759495831750,-115.43233977,0.00018205,2]
[388917012,1759495831760,-430.26,0.00018205,2]
[388917014,1759495831770,-428.45,0.00018205,2]
[388917015,1759495831780,-422.64525213,0.00018205,2]
[388917018,1759495831791,-12.65474787,0.00018205,2]
[388917020,1759495831800,-304.54,0.00018205,2]
[388917022,1759495831810,-428.81,0.00018205,2]
[388917024,1759495831819,-310.61492605,0.00018205,2]
[388917028,1759495831849,-128.18507395,0.00018205,2]
[388917030,1759495831859,-431.13,0.00018205,2]
[388917032,1759495831870,-3.60336401,0.00018205,2]
[388917034,1759495831882,-433.69663599,0.00018205,2]
[388917036,1759495831893,-300.43,0.00018205,2]
[388917038,1759495831903,-440.86,0.00018205,2]
[388917040,1759495831913,-342.76329901,0.00018205,2]
[388917060,1759495832055,-94.21670099,0.00018205,2]
[388917062,1759495832064,-438.43,0.00018205,2]
[388917064,1759495832074,-305.44,0.00018205,2]
[388917066,1759495832083,-444.2,0.00018205,2]
[388917068,1759495832094,-440.59,0.00018205,2]
[388917070,1759495832103,-441.29,0.00018205,2]
[388917072,1759495832112,-440.6,0.00018297,2]
[388917074,1759495832121,-439.72,0.00018297,2]
[388917076,1759495832130,-436.62,0.00018297,2]
[388917078,1759495832151,-430.3,0.00018297,2]
[388917080,1759495832170,-428.25,0.00018297,2]
[388917082,1759495832183,-435.6,0.00018297,2]
[388917084,1759495832193,-305.2,0.00018297,2]
[388917086,1759495832203,-432.46,0.00018297,2]
[388917088,1759495832213,-431.26,0.00018297,2]
[388917090,1759495832223,-434.09,0.00018297,2]
[388917092,1759495832231,-434.44,0.00018297,2]
[388917094,1759495832240,-304.14,0.00018297,2]
[388917096,1759495832249,-429.21,0.00018297,2]
[388917098,1759495832258,-428.83,0.00018297,2]
[388917100,1759495832266,-441.44,0.00018297,2]
[388917102,1759495832275,-430.78,0.00018389,2]
[388917104,1759495832284,-434.38,0.00018389,2]
[388917106,1759495832293,-150.63,0.00018389,2]
[388917108,1759495832303,-435.53,0.00018389,2]
[388917110,1759495832312,-150.15,0.00018389,2]
[388917112,1759495832322,-300.88,0.00018389,2]
[388917114,1759495832331,-152.44,0.00018389,2]
[388917116,1759495832341,-151.66,0.00018389,2]
[388917118,1759495832350,-303.55,0.00018389,2]
[388917120,1759495832359,-150.85,0.00018389,2]
[388917122,1759495832368,-438.89,0.00018389,2]
[388917124,1759495832378,-438.27,0.00018389,2]
[388917126,1759495832388,-427.36,0.00018389,2]
[388917128,1759495832398,-305.39,0.00018389,2]
[388917130,1759495832407,-427.83,0.00018389,2]
[388917132,1759495832416,-150.03,0.00018389,2]
[388917134,1759495832426,-435.29,0.00018389,2]
[388917136,1759495832435,-433.5,0.00018389,2]
[388917138,1759495832444,-440.18,0.00018482,2]
[388917140,1759495832453,-429.89,0.00018482,2]
[388917142,1759495832463,-150.68,0.00018482,2]
[388917144,1759495832472,-151.78,0.00018482,2]
[388917146,1759495832481,-152.21,0.00018482,2]
[388917149,1759495832491,-304.97,0.00018482,2]
[388917151,1759495832501,-152.18,0.00018482,2]
[388917152,1759495832510,-150.33,0.00018482,2]
[388917155,1759495832519,-302.71,0.00018482,2]
[388917157,1759495832528,-151.49,0.00018482,2]
[388917158,1759495832537,-150.57,0.00018482,2]
[388917160,1759495832547,-303.45,0.00018482,2]
[388917161,1759495832556,-151.71,0.00018482,2]
[388917163,1759495832566,-150.86,0.00018482,2]
[388917165,1759495832576,-150.15,0.00018482,2]
[388917167,1759495832585,-301.14,0.00018482,2]
[388917169,1759495832595,-151.97,0.0001867,2]
[388917171,1759495832604,-305.79,0.0001867,2]
[388917173,1759495832613,-150.66,0.0001867,2]
[388917175,1759495832623,-152.27,0.00018782,2]
[388917177,1759495832633,-152.68,0.00018782,2]
[388917179,1759495832642,-3751.46,0.00018782,2]
[388917181,1759495832651,-1185.002,0.00018794,2]
[388917183,1759495832660,-160.787,0.00018794,2]
[388917185,1759495832669,-332.41892001,0.00019078,2]
[388917187,1759495832679,-764.01665965,0.00019078,2]
[388917189,1759495832688,-206.7896915,0.00019078,3]
[388917191,1759495832698,-312.95,0.00019104,2]
[388917193,1759495832708,-270931.81218972,0.00019151,3]
[388917195,1759495832721,-95838.70672315,0.00019151,3]
[388917197,1759495832732,-37071.15835386,0.00019151,3]
[388917199,1759495832744,-107454.28984751,0.00019151,3]
[388917202,1759495832755,-34491.78406779,0.00019151,3]
[388917211,1759495837398,-499.33824291,0.00019151,3]
[388917215,1759495839333,-546.0,0.00019151,3]